Workbook

Sheet Van_Hire
B2: Straight Line Modelling
C6: John is looking to hire a van. He has decided between to companies Rent-A-Van and Vans are Us. | AI6: Rent-A-Van | AL6: Vans-R-Us
AH7: 0 | AI7: =$AF$10/100*AH7+$AF$9 -> 100 | AK7: 0 | AL7: =$AF$12/100*AK7+$AF$11 -> 20
AH8: 20 | AI8: =$AF$10/100*AH8+$AF$9 -> 107 | AK8: 20 | AL8: =$AF$12/100*AK8+$AF$11 -> 36
AF9: =ROUND(RAND()*(13-8)+8,0)*10 -> 100 | AH9: 40 | AI9: 114 | AK9: 40 | AL9: 52
E10: Rent - A - Van | Q10: Vans R Us | AF10: =ROUND(RAND()*(8-4)+4,0)*5 -> 35 | AH10: 60 | AI10: 121 | AK10: 60 | AL10: 68
AF11: =ROUND(RAND()*(3-1)+1,0)*10 -> 20 | AH11: 80 | AI11: 128 | AK11: 80 | AL11: 84
D12: ="£ "&AF9&" plus + "&AF10&"p per miles" -> £ 100 plus + 35p per miles | P12: ="£ "&AF11&" plus + "&AF12&"p per miles" -> £ 20 plus + 80p per miles | AF12: =ROUND(RAND()*(24-13)+13,0)*5 -> 80 | AH12: 100 | AI12: 135 | AK12: 100 | AL12: 100
AH13: 120 | AI13: 142 | AK13: 120 | AL13: 116
AH14: 140 | AI14: 149 | AK14: 140 | AL14: 132
AH15: 160 | AI15: 156 | AK15: 160 | AL15: 148
J16: Miles travelled | AH16: 180 | AI16: 163 | AK16: 180 | AL16: 164
J17: 0 | L17: =AH9 -> 40 | N17: =AH11 -> 80 | P17: =AH12 -> 100 | R17: =AH15 -> 160 | T17: =AH17 -> 200 | V17: =AH22 -> 300 | X17: =AH24 -> 340 | AH17: 200 | AI17: 170 | AK17: 200 | AL17: 180
D18: Rent - A - Van Cost £ | AH18: 220 | AI18: 177 | AK18: 220 | AL18: 196
AH19: 240 | AI19: 184 | AK19: 240 | AL19: 212
D20: Vans R Us Cost £ | AH20: 260 | AI20: 191 | AK20: 260 | AL20: 228
AH21: 280 | AI21: 198 | AK21: 280 | AL21: 244
AH22: 300 | AI22: 205 | AK22: 300 | AL22: 260
B23: (a) Copy and complete the table above. | AH23: 320 | AI23: 212 | AK23: 320 | AL23: 276
AH24: 340 | AI24: 219 | AK24: 340 | AL24: 292
AH25: 360 | AI25: 226 | AK25: 360 | AL25: 308
B26: (b) Find a formula for the cost C of hiring a van from Rent-A-Van for M miles. | AH26: 380 | AI26: 233 | AK26: 380 | AL26: 324
AH27: 400 | AI27: 240 | AK27: 400 | AL27: 340
D28: Answer C = | AH28: =AF10/100 -> 0.35 | AI28: M | AJ28: + | AK28: =AF9 -> 100
AH29: =AF12/100 -> 0.8 | AI29: M | AJ29: + | AK29: =AF11 -> 20
B30: (c) Find a formula for the cost C of hiring a van from Van R Us for M miles. | AH30: =(AH29-AH28) -> 0.45 | AK30: =AK28-AK29 -> 80
AK31: =AK30/AH30 -> 177.7777778
D32: Answer C = | AK32: =ROUND(AK31,0) -> 178
AK33: =AH28*AK32+AK28 -> 162.3
AK34: =ROUND(AK33,2) -> 162.3
B35: (d) On the graph plot the cost C against the numbers days hire M miles for each company.
B55: ="(e) (i) John was going to cover a total of "&AF55&" miles which company should he use." -> (e) (i) John was going to cover a total of 324 miles which company should he use. | AF55: =IF(AI55=1,ROUND(RAND()*(400-(AH55+10))+(AH55+10),0),ROUND(RAND()*((AH55-10)-15)+15,0)) -> 324 | AH55: =AK32 -> 178 | AI55: =ROUND(RAND()*(1-0)+0,0) -> 1
D57: Company = | AF57: =IF(AI57=1,"Vans-R-Us","Rent-A-Van") -> Rent-A-Van
AF58: =AF55*AH28+AK28 -> 213.4
AF59: =AF55*AH29+AK29 -> 279.2
C60: (ii) To the nearest pound, how much will John save. | R60: Saving = £ | AF60: =IF(AF58<AF59,ROUND(AF59-AF58,0),ROUND(AF58-AF59,0)) -> 66
B63: (f) (i) By solving algebracially, find to the nearest mile the distance were it would make no difference
C64: which company John used.
D66: Answer = | I66: miles | AF66: =AK32 -> 178
C69: (ii) What would the cost be for this mileage to the nearest pound.
D71: Answer = £ | AF71: =ROUND(AK34,0) -> 162
B74: (g) Looking at your graphs in part (d) write a paragraph to summaries what conclusion John should come to.

Sheet Sheet2

Sheet Sheet3
